bitfinex/quotes_ETHUSD_20250129
["timestamp","ask_amount","ask_price","bid_price","bid_amount"]
[1738176593396,6.40725,3121.5,3121.1,0.55]
[1738176593702,3.20359,3121.5,3121.1,0.55]
[1738176594067,3.20341,3121.7,3121.1,3.75399]
[1738176594266,6.40686,3121.7,3121.1,3.75399]
[1738176594700,1.281841,3122.8,3121.1,3.75399]
[1738176594701,0.8292,3122.3,3121.3,3.75373]
[1738176594917,3.20329,3121.8,3121.3,3.75373]
[1738176595223,3.20329,3121.8,3121.3,0.55]
[1738176595368,3.20339,3121.7,3121.3,0.55]
[1738176595678,3.20329,3121.8,3121.3,0.55]
[1738176595873,6.40667,3121.8,3121.3,0.55]
[1738176596065,3.20341,3121.7,3121.3,0.55]
[1738176598006,3.20359,3121.5,3121.1,0.55]
[1738176598207,3.20376,3121.4,3121.2,0.315]
[1738176598434,3.20379,3121.3,3121.2,0.865]
[1738176599726,3.20359,3121.5,3121.3,0.55]
[1738176599934,6.40726,3121.5,3121.3,0.55]
[1738176600127,3.20359,3121.5,3121.2,0.315]
[1738176600358,3.20344,3121.7,3121.3,0.55]
[1738176600537,3.9703,3122.1,3121.4,0.8332]
[1738176600845,3.20313,3122.0,3121.5,3.75357]
[1738176601141,3.9703,3122.1,3121.5,3.75357]
[1738176601142,3.20322,3121.9,3121.5,0.55]
[1738176601348,7.17339,3122.1,3121.5,0.55]
[1738176601565,3.20266,3122.4,3122.0,0.55]
[1738176601716,3.20258,3122.5,3122.0,3.75303]
[1738176602722,3.20252,3122.6,3122.0,3.75303]
[1738176603045,3.96828,3122.8,3122.1,0.55]
[1738176603377,3.21205757,3123.0,3122.5,1.3084]
[1738176603654,0.00995757,3123.0,3122.7,0.55]
[1738176603947,3.21200757,3123.0,3122.7,0.55]
[1738176604143,3.21200757,3123.0,3122.8,0.865]
[1738176604144,3.20217,3122.9,3122.8,0.865]
[1738176604445,0.00995757,3123.0,3122.9,0.55]
[1738176605223,0.00995757,3123.0,3122.9,3.75215]
[1738176605441,0.00995757,3123.0,3122.9,3.75965]
[1738176605640,0.00995757,3123.0,3122.9,4.58156676]
[1738176606353,0.00995757,3123.0,3122.9,7.58156676]
[1738176606550,0.00995757,3123.0,3122.9,7.54955]
[1738176607130,0.00995757,3123.0,3122.9,7.55705]
[1738176608267,0.38162424,3123.7,3123.6,4.52573]
[1738176610088,0.38162424,3123.7,3123.6,0.5575]
[1738176610301,3.58304424,3123.7,3123.6,0.315]
[1738176610571,3.20162,3123.5,3123.3,0.315]
[1738176610737,3.20162,3123.5,3123.4,0.55]
[1738176610934,3.20152,3123.6,3123.4,0.55]
[1738176611158,3.20153,3123.5,3123.4,0.55]
[1738176611937,3.20163,3123.4,3123.3,0.315]
[1738176612651,3.20163,3123.4,3123.1,0.55]
[1738176612652,3.20189,3123.2,3123.1,0.55]
[1738176613526,3.20174,3123.3,3122.5,0.7896]
[1738176613821,3.20235,3122.7,3122.6,0.315]
[1738176614034,0.797,3122.6,3121.9,1.40091898]
[1738176614181,3.20297,3122.1,3122.0,0.315]
[1738176615036,3.20256,3122.5,3121.9,0.315]
[1738176615325,3.20256,3122.5,3122.0,0.55]
[1738176615724,6.40522,3122.5,3122.0,0.55]
[1738176615905,3.20256,3122.5,3122.0,0.55]
[1738176616088,3.20248,3122.6,3122.2,0.55]
[1738176616423,3.20226,3122.8,3122.4,0.55]
[1738176616590,0.8174,3123.0,3122.4,0.55]
[1738176616591,3.20208,3123.0,3122.6,0.55]
[1738176616816,6.40422,3123.0,3122.6,0.55]
[1738176617017,3.20208,3123.0,3122.5,0.55]
[1738176617233,6.40421,3123.0,3122.5,0.55]
[1738176617545,3.20184,3123.2,3122.4,0.55]
[1738176617836,3.20211,3123.0,3122.4,0.55]
[1738176618198,3.20211,3123.0,3122.5,0.03202203]
[1738176618399,3.20211,3123.0,3122.6,0.55]
[1738176618601,3.20175,3123.3,3122.7,3.75228]
[1738176619034,3.20157,3123.5,3123.0,0.55]
[1738176620238,3.20148,3123.6,3122.6,3.20241]
[1738176620239,3.20191,3123.2,3122.7,0.55]
[1738176620451,3.20193,3123.2,3122.7,0.55]
[1738176620736,3.20193,3123.2,3122.9,0.55]
[1738176620737,3.20204,3123.1,3122.9,0.55]
[1738176620938,3.20204,3123.0,3122.9,0.55]
[1738176621435,3.20215,3122.9,3122.8,0.315]
[1738176621936,3.20215,3122.9,3122.8,0.865]
[1738176622138,3.95795,3123.1,3122.9,0.55]
[1738176622300,3.20195,3123.1,3122.9,0.55]
[1738176622504,3.20195,3123.1,3122.8,0.315]
[1738176622726,3.20215,3122.9,3122.8,0.315]
[1738176623804,3.20278,3122.3,3122.0,1.4030972]
[1738176624009,0.7601,3122.8,3122.1,0.314]
[1738176624010,3.20266,3122.5,3122.1,0.314]
[1738176624225,3.20266,3122.5,3122.2,0.55]
[1738176624429,3.2028,3122.3,3122.2,0.55]
[1738176624832,3.2028,3122.3,3122.1,0.314]
[1738176625239,3.2028,3122.3,3122.2,0.55]
[1738176625425,3.20319,3121.9,3121.6,0.7978]
[1738176625629,3.20346,3121.7,3121.4,2.85]
[1738176625950,3.20369,3121.4,3121.0,0.7978]
[1738176626254,3.20351,3121.6,3121.1,0.314]
[1738176626549,3.20381,3121.3,3121.1,0.314]
[1738176626753,6.40729,3121.5,3121.2,0.55]
[1738176626930,3.20371,3121.4,3121.1,0.314]
[1738176627257,3.20361,3121.5,3121.1,0.314]
[1738176627418,6.40728,3121.5,3121.1,0.314]
[1738176627619,3.20371,3121.4,3121.1,0.314]
[1738176628036,3.20405,3121.1,3120.7,0.7777]
[1738176628246,3.20405,3121.1,3120.8,0.314]
[1738176628438,3.20405,3121.1,3120.9,0.55]
[1738176628957,3.2041,3121.0,3120.9,0.55]
[1738176629961,3.20398,3121.2,3120.9,0.55]
[1738176630257,3.204,3121.1,3120.9,0.55]
[1738176630552,3.204,3121.1,3120.5,3.20453]
[1738176630553,3.20436,3120.8,3120.4,0.7885]
[1738176630761,0.8262,3121.4,3120.7,0.314]
[1738176630934,6.40818,3121.1,3120.8,0.55]
[1738176631346,3.2041,3121.0,3120.8,0.55]
[1738176632359,3.2042,3120.9,3120.8,0.55]
[1738176632533,3.20413,3121.0,3120.8,0.55]
[1738176632735,0.8262,3121.4,3120.3,0.7503]
[1738176632736,4.02992,3121.4,3120.3,0.7503]
[1738176632934,6.40895,3120.7,3120.4,0.314]
[1738176633132,3.20477,3120.4,3119.8,3.95563]
[1738176633372,3.20488,3120.3,3119.9,0.314]
[1738176633733,0.7822,3120.7,3119.9,0.314]
[1738176634367,3.20485,3120.3,3119.9,0.314]
[1738176635061,3.2055,3119.7,3119.1,0.314]
[1738176635272,3.20576,3119.4,3119.2,0.314]
[1738176635570,3.20558,3119.6,3119.2,0.314]
[1738176636074,6.4112,3119.6,3119.2,0.314]
[1738176636270,3.20558,3119.6,3119.2,0.314]
[1738176636639,3.20561,3119.6,3119.2,0.314]
[1738176636855,3.20532,3119.9,3119.2,0.314]
[1738176637061,3.20552,3119.7,3119.3,1.3512]
[1738176637639,3.20565,3119.5,3119.3,1.3512]
[1738176637860,3.20565,3119.5,3119.3,0.55]
[1738176638034,3.20574,3119.4,3119.2,0.314]
[1738176638246,0.7908,3119.6,3118.7,0.8087]
[1738176638444,3.20645,3118.8,3118.4,1.42941218]
[1738176638674,3.20652,3118.7,3118.5,0.314]
[1738176638840,3.20645,3118.8,3118.5,0.314]
[1738176639168,3.20645,3118.8,3118.6,0.55]
[1738176639540,3.20645,3118.8,3118.5,0.314]
[1738176639541,3.20646,3118.7,3118.5,0.314]
[1738176639765,3.20622,3119.0,3118.5,0.314]
[1738176639939,0.399626,3119.5,3118.5,0.314]
[1738176640135,3.20651,3118.7,3118.6,0.55]
[1738176640485,3.20651,3118.7,3118.6,0.864]
[1738176641276,3.20629,3118.9,3118.4,0.55]
[1738176641570,3.20629,3118.9,3118.6,0.314]
[1738176641934,3.20642,3118.8,3118.6,0.314]
[1738176642438,3.20629,3118.9,3118.7,0.55]
[1738176642637,3.20636,3118.8,3118.7,0.864]
[1738176643338,3.2067,3118.5,3118.1,0.8139]
[1738176643654,3.20678,3118.4,3118.2,0.314]
[1738176644054,6.41346,3118.5,3118.3,0.55]
[1738176644239,3.20677,3118.4,3118.3,0.55]
[1738176645130,3.2067,3118.5,3118.3,0.55]
[1738176645334,3.20706,3118.2,3117.7,3.824]
[1738176645669,0.8248,3119.0,3117.9,0.0075]
[1738176645874,3.20625,3118.9,3117.9,0.59706741]
[1738176646187,3.20608,3119.1,3118.4,0.55]
[1738176646470,3.20589,3119.3,3118.6,1.3527]
[1738176646776,3.20597,3119.2,3118.8,0.55]
[1738176647147,0.7876,3119.4,3118.8,3.75634]
[1738176647148,3.20578,3119.4,3118.8,3.75634]
[1738176648274,3.20569,3119.5,3119.0,0.55]
[1738176648447,3.20549,3119.7,3119.2,0.55]
[1738176648846,3.20549,3119.7,3118.9,3.20622]
[1738176648847,3.20561,3119.6,3119.0,3.75612]
[1738176649169,3.20561,3119.6,3119.1,0.55]
[1738176649388,3.20561,3119.6,3119.4,0.55]
[1738176649666,3.20549,3119.7,3119.4,0.55]
[1738176650271,3.20549,3119.7,3119.6,0.55]
[1738176650974,3.20553,3119.6,3118.5,3.7737]
[1738176651170,3.20616,3119.0,3118.6,0.8715]
[1738176651371,3.20616,3119.0,3118.7,35.0]
[1738176651575,3.20598,3119.2,3118.7,35.0]
[1738176652074,3.20611,3119.1,3118.7,35.0]
[1738176652275,3.20611,3119.1,3118.8,0.55]
[1738176652694,3.20632,3118.9,3118.7,0.55]
[1738176652889,3.20632,3118.9,3118.8,35.55]
[1738176653174,6.41226,3119.1,3118.9,0.55]
[1738176653335,6.41226,3119.1,3118.9,0.864]
[1738176653336,3.20613,3119.1,3118.9,0.864]
[1738176653542,3.2059,3119.3,3118.9,0.864]
[1738176653849,3.2059,3119.3,3119.1,0.55]
[1738176654049,3.20595,3119.2,3119.1,0.55]
[1738176654858,3.20587,3119.3,3119.1,0.55]
[1738176655078,3.20587,3119.3,3119.2,1.3094]
[1738176655378,0.7636,3120.0,3119.3,0.55]
[1738176655379,3.20571,3119.5,3119.3,0.55]
[1738176656180,3.9688,3120.0,3119.0,35.0]
[1738176656181,3.20595,3119.2,3119.1,0.55]
[1738176656380,3.20595,3119.2,3119.1,0.864]
[1738176656674,3.20632,3118.9,3118.6,0.55]
[1738176656876,3.20632,3118.9,3118.8,0.55]
[1738176657177,3.20632,3118.9,3118.8,35.55]
[1738176657750,3.20632,3118.9,3118.8,35.314]
[1738176657981,3.2061,3119.1,3118.9,0.55]
[1738176658283,3.20613,3119.1,3118.9,0.55]
[1738176658478,3.20615,3119.0,3118.9,0.55]
[1738176658978,3.20613,3119.1,3118.9,0.55]
[1738176658979,3.20607,3119.1,3118.9,0.55]
[1738176660145,3.20595,3119.2,3118.9,0.55]
[1738176660485,4.02888,3119.3,3118.9,0.55]
[1738176660644,3.20569,3119.5,3118.9,0.55]
[1738176660844,3.20532,3119.9,3119.5,0.55]
[1738176661182,3.20508,3120.1,3119.7,1.3557]
[1738176661348,3.20492,3120.2,3119.7,1.3557]
[1738176661549,3.20504,3120.1,3119.9,0.55]
[1738176661974,3.20504,3120.1,3119.8,0.55]
[1738176662370,3.20533,3119.8,3119.4,0.8189]
[1738176662602,3.20561,3119.6,3119.5,0.314]
[1738176662892,3.20561,3119.6,3119.5,35.864]
[1738176663183,3.20561,3119.6,3119.5,35.55]
[1738176663480,3.20561,3119.6,3119.5,35.864]
[1738176665011,0.807,3120.1,3119.6,0.55]
[1738176665301,3.20497,3120.2,3119.6,3.75545]
[1738176666081,0.807,3120.5,3119.6,3.75545]
[1738176666282,3.20509,3120.1,3119.6,3.75545]
[1738176666607,3.20509,3120.1,3119.8,0.55]
[1738176666972,3.20509,3120.1,3119.7,0.55]
[1738176667480,3.20523,3119.9,3119.6,0.55]
[1738176667646,3.20509,3120.1,3119.5,0.864]
[1738176668002,3.20517,3120.0,3119.9,35.55]
[1738176668298,3.20517,3120.0,3119.9,0.55]
[1738176668947,3.20543,3119.7,3119.6,0.23599623]
[1738176669151,3.20543,3119.7,3119.6,0.54999623]
[1738176669462,3.20543,3119.7,3119.6,0.314]
[1738176670055,3.20533,3119.8,3119.7,0.55]
[1738176670264,3.20494,3120.2,3119.7,0.55]
[1738176670454,3.20507,3120.1,3119.9,0.55]
[1738176670872,3.20494,3120.2,3120.0,35.55]
[1738176671058,3.20494,3120.2,3120.1,0.55]
[1738176671449,3.20475,3120.4,3120.1,0.55]
[1738176671875,3.20492,3120.2,3119.9,0.55]
[1738176672072,3.20492,3120.2,3120.1,0.55]
[1738176672474,3.20465,3120.5,3119.9,3.75522]
[1738176672784,3.20473,3120.4,3119.9,3.75522]
[1738176672953,3.20473,3120.4,3120.2,0.55]
[1738176673179,3.20434,3120.8,3120.4,0.55]
[1738176673369,3.20441,3120.7,3120.4,0.55]
[1738176674003,0.8066,3121.0,3120.4,0.55]
[1738176674205,3.2035,3121.6,3120.7,0.55]
[1738176674408,3.20368,3121.5,3121.0,1.3316]
[1738176674700,3.2035,3121.6,3121.0,1.3316]
[1738176675111,3.2033,3121.8,3121.2,0.55]
[1738176675428,3.20344,3121.7,3121.4,0.55]
[1738176676152,3.20311,3122.0,3121.6,1.3316]
[1738176676295,3.20325,3121.9,3121.6,1.3316]
[1738176676636,3.20346,3121.7,3121.3,0.314]
[1738176676789,3.20346,3121.7,3121.4,35.0]
[1738176676995,3.20364,3121.5,3121.4,0.313]
[1738176677535,3.20369,3121.4,3121.3,0.55]
[1738176678059,3.2032,3121.9,3121.3,0.55]
[1738176678198,3.843356,3122.3,3121.6,0.55]
[1738176678388,3.20299,3122.1,3121.6,0.55]
[1738176678840,3.20299,3122.1,3121.8,0.55]
[1738176679137,3.20317,3121.9,3121.8,0.55]
[1738176679545,4.02097,3121.9,3121.8,0.55]
[1738176680335,3.5873436,3122.1,3121.8,0.55]
[1738176680495,3.20317,3121.9,3121.2,3.20387]
[1738176680735,3.20343,3121.7,3121.6,0.313]
[1738176681013,3.20343,3121.7,3121.6,0.863]
[1738176682098,3.20343,3121.7,3121.6,0.55]
[1738176682700,0.795,3121.8,3121.3,0.313]
[1738176682929,3.20369,3121.4,3121.3,0.313]
[1738176683127,3.20369,3121.4,3120.2,3.21238]
[1738176683128,0.640727,3121.4,3120.4,0.7749]
[1738176683307,3.20424,3120.9,3120.5,0.313]
[1738176683690,3.204,3121.1,3120.6,0.55]
[1738176683897,3.204,3121.1,3120.8,0.55]
[1738176684595,3.20361,3121.5,3120.8,3.75424]
[1738176684795,3.20379,3121.3,3120.8,3.75424]
[1738176685000,3.20379,3121.3,3120.8,0.55]
[1738176685413,3.20399,3121.1,3120.8,1.3037]
[1738176685735,3.20399,3121.1,3119.4,0.772]
[1738176685736,1.471778,3121.1,3119.4,0.772]
[1738176685949,3.20512,3120.1,3119.5,3.20559]
[1738176686111,3.20519,3120.0,3119.6,0.313]
[1738176686297,3.20485,3120.3,3119.6,0.313]
[1738176686298,3.20489,3120.3,3119.6,0.313]
[1738176686493,3.20497,3120.2,3119.6,0.313]
[1738176686734,3.20503,3120.1,3119.6,0.313]
[1738176687107,3.20485,3120.3,3119.6,0.313]
[1738176687335,3.20465,3120.5,3119.9,0.55]
[1738176687555,3.20443,3120.7,3120.1,0.55]
[1738176687698,3.20423,3120.9,3120.3,0.55]
[1738176687901,3.20416,3121.0,3120.5,0.55]
[1738176688122,3.20431,3120.8,3120.5,0.55]
[1738176688453,3.20451,3120.6,3120.5,0.55]
[1738176688752,3.20413,3121.0,3120.5,0.313]
[1738176688960,0.7653,3121.4,3120.5,0.313]
[1738176688961,3.969,3121.4,3120.7,0.55]
[1738176689103,3.2037,3121.4,3120.7,3.75438]
[1738176689809,3.2035,3121.6,3120.9,3.7542]
[1738176690222,3.2035,3121.6,3121.0,3.20407]
[1738176690427,3.20382,3121.3,3120.8,3.55]
[1738176690623,3.20382,3121.3,3120.8,3.0]
[1738176690940,3.20379,3121.3,3120.9,0.313]
[1738176691235,3.20406,3121.1,3121.0,0.55]
[1738176694617,3.20379,3121.3,3121.0,0.55]
[1738176694818,3.20362,3121.5,3121.0,0.55]
[1738176695031,3.20342,3121.7,3121.0,0.71212]
[1738176695559,3.20366,3121.5,3121.0,0.71212]
[1738176695935,3.20342,3121.7,3121.0,3.91618]
[1738176696138,3.20349,3121.6,3121.1,0.55]
[1738176696644,3.20342,3121.7,3121.2,0.313]
[1738176696836,6.40643,3121.9,3121.4,0.55]
[1738176697032,3.20319,3121.9,3121.4,0.55]
[1738176697258,3.20335,3121.8,3121.4,0.55]
[1738176697461,3.20358,3121.5,3121.4,0.55]
[1738176697757,3.20358,3121.5,3121.2,0.313]
[1738176697954,3.2037,3121.4,3121.2,0.313]
[1738176698359,3.20379,3121.3,3121.2,0.313]
[1738176698527,3.2037,3121.4,3121.2,0.313]
[1738176699460,6.40707,3121.6,3121.2,0.313]
[1738176699959,3.20351,3121.6,3121.2,0.313]
[1738176700147,3.20406,3121.1,3120.6,0.8313]
[1738176700329,3.20411,3121.0,3120.7,0.313]
[1738176700523,3.20423,3120.9,3120.7,0.313]
[1738176700962,3.20423,3120.9,3120.8,0.55]
[1738176701529,3.20423,3120.9,3120.8,0.313]
[1738176703467,3.20435,3120.8,3120.4,0.55]
[1738176703769,3.20423,3120.9,3120.6,0.55]
[1738176704154,3.20431,3120.8,3120.6,0.55]
[1738176704647,3.20431,3120.8,3120.7,0.863]
[1738176704877,3.20461,3120.5,3120.3,0.7793]
[1738176705079,6.40932,3120.5,3120.4,0.313]
[1738176705241,3.20461,3120.5,3120.4,0.313]
[1738176706155,3.20445,3120.7,3120.4,0.313]
[1738176706351,3.20453,3120.6,3120.4,0.313]
[1738176707700,6.40751,3121.4,3120.7,3.20432]
[1738176707979,0.396121,3121.6,3121.0,3.75409]
[1738176707980,3.20356,3121.6,3121.0,3.75409]
[1738176708747,3.20331,3121.8,3121.4,0.55]
[1738176708974,0.7631,3122.1,3121.6,0.55]
[1738176709164,3.20326,3121.9,3121.6,0.55]
[1738176709484,6.40651,3121.9,3121.6,0.55]
[1738176709851,3.20344,3121.7,3121.2,1.3475]
[1738176710282,3.20376,3121.4,3121.0,3.0]
[1738176710483,3.20387,3121.3,3120.9,0.7975]
[1738176710658,3.2039,3121.2,3121.0,0.863]
[1738176711264,3.2039,3121.2,3121.1,0.313]
[1738176711761,3.2039,3121.2,3121.1,0.863]
[1738176711967,3.20417,3121.0,3120.5,0.802]
[1738176712161,0.720176,3121.2,3120.3,3.20475]
[1738176712162,3.20437,3120.8,3120.6,0.313]
[1738176712362,3.20426,3120.9,3120.6,0.313]
[1738176714159,3.20426,3120.9,3119.8,0.0075]
[1738176714160,3.20515,3120.0,3119.7,0.7928]
[1738176714358,3.20529,3119.9,3119.7,0.7928]
[1738176714567,3.20476,3120.4,3119.6,0.55]
[1738176714788,3.20543,3119.7,3119.6,0.55]
[1738176714969,3.20543,3119.7,3119.6,0.863]
[1738176715163,3.601236,3120.3,3119.6,0.863]
[1738176715164,3.20529,3119.9,3119.6,0.863]
[1738176715785,3.20476,3120.4,3119.6,4.06848]
[1738176715990,3.20494,3120.2,3119.6,4.06848]
[1738176716183,3.20494,3120.2,3119.7,0.55]
[1738176716685,3.20513,3120.0,3119.7,0.55]
[1738176716906,3.20533,3119.8,3119.7,0.313]
[1738176720394,0.7931,3120.4,3119.7,0.313]
[1738176720691,3.20526,3119.9,3119.7,0.313]
[1738176720890,0.820176,3121.2,3119.7,0.313]
[1738176720891,3.2047,3120.5,3119.7,0.313]
[1738176721092,6.40938,3120.5,3119.9,0.55]
[1738176721261,3.20472,3120.4,3119.9,0.55]
[1738176722093,3.20484,3120.3,3119.9,0.55]
[1738176722885,3.20465,3120.5,3119.9,3.75522]
[1738176723626,3.20465,3120.5,3119.9,6.96037]
[1738176723762,3.20422,3120.9,3120.4,0.55]
[1738176724093,3.20402,3121.1,3120.6,0.55]
[1738176724319,0.8155,3121.3,3120.6,0.55]
[1738176724320,4.01933,3121.3,3120.6,0.55]
[1738176724494,3.20342,3121.7,3120.8,0.55]
[1738176724690,3.20342,3121.7,3121.1,3.20393]
[1738176725028,3.20342,3121.7,3121.2,0.55]
[1738176725159,3.20323,3121.9,3121.5,0.55]
[1738176725366,3.203,3122.1,3121.7,0.55]
[1738176725589,3.20306,3122.1,3121.7,0.55]
[1738176726494,3.20291,3122.2,3121.7,0.55]
[1738176726696,3.20315,3122.0,3121.7,0.55]
[1738176727270,3.2029,3122.2,3121.7,0.55]
[1738176727880,3.2029,3122.2,3121.7,3.75332]
[1738176728075,3.20268,3122.4,3121.9,3.20311]
[1738176728284,3.20268,3122.4,3122.0,0.863]
[1738176728800,3.20287,3122.2,3122.1,0.313]
[1738176729165,3.20287,3122.2,3122.1,0.863]
[1738176729672,3.20268,3122.4,3122.2,0.55]
[1738176729992,3.20276,3122.3,3122.2,0.55]
[1738176730500,3.20286,3122.2,3121.7,0.55]
[1738176730695,3.20276,3122.3,3121.9,0.55]
[1738176730903,3.20301,3122.1,3121.9,0.55]
[1738176731086,3.20301,3122.1,3121.6,0.7749]
[1738176731294,3.20301,3122.1,3122.0,0.313]
[1738176731603,3.20301,3122.1,3122.0,0.863]
[1738176731800,3.20301,3122.1,3122.0,0.55]
[1738176732101,4.244027,3122.1,3122.0,0.55]
[1738176733801,3.20301,3122.1,3122.0,0.55]
[1738176736005,3.20261,3122.5,3122.1,0.55]
[1738176736301,3.20282,3122.3,3122.0,0.55]
[1738176736664,3.20282,3122.3,3121.8,0.55]
[1738176737004,4.00682,3123.1,3122.4,3.20266]
[1738176737221,3.20202,3123.1,3122.5,0.55]
[1738176737518,6.40485,3122.7,3122.2,0.7563]
[1738176737726,3.20218,3122.9,3122.2,3.95916]
[1738176737882,3.20218,3122.9,3122.4,3.20266]
[1738176738291,3.20218,3122.9,3122.5,0.55]
[1738176738491,3.20195,3123.1,3122.5,3.75255]
[1738176739117,3.20195,3123.1,3122.5,0.55]
[1738176739318,3.20163,3123.4,3122.7,3.75227]
[1738176739618,3.20176,3123.3,3122.9,0.55]
[1738176740117,3.20172,3123.4,3122.9,0.55]
[1738176740297,3.20188,3123.2,3122.7,0.55]
[1738176740880,0.816,3123.9,3122.7,0.55]
[1738176740881,3.20169,3123.4,3122.7,0.55]
[1738176741103,6.40339,3123.4,3122.7,3.75227]
[1738176741302,3.20155,3123.5,3123.0,0.55]
[1738176741617,3.20164,3123.4,3122.9,0.55]
[1738176741783,3.20164,3123.4,3122.9,3.75213]
[1738176741980,3.20177,3123.3,3122.8,0.0075]
[1738176742400,3.20164,3123.4,3122.9,0.55]
[1738176743082,3.20191,3123.2,3122.7,3.0]
[1738176743288,3.20196,3123.1,3123.0,0.314]
[1738176743506,3.20169,3123.4,3123.0,0.314]
[1738176743825,3.20175,3123.3,3123.0,0.314]
[1738176744626,3.20191,3123.2,3123.0,0.314]
[1738176744829,3.20146,3123.6,3123.0,0.314]
[1738176745138,0.1611534,3124.0,3123.0,0.314]
[1738176745139,3.3621834,3124.0,3123.4,3.20156]
[1738176745428,3.3621834,3124.0,3123.2,3.75177]
[1738176745429,3.20124,3123.8,3123.2,3.20177]
[1738176745652,3.20169,3123.4,3123.1,0.8308]
[1738176745827,3.20126,3123.8,3123.1,0.8308]
[1738176746139,3.20126,3123.8,3123.3,0.55]
[1738176747938,3.20143,3123.6,3123.2,0.55]
[1738176748428,3.20227,3122.8,3122.5,0.7763]
[1738176748734,3.20215,3122.9,3122.6,0.313]
[1738176749233,3.20226,3122.8,3122.6,0.313]
[1738176749538,3.20226,3122.8,3122.7,0.313]
[1738176750440,3.2025,3122.6,3122.1,1.46088628]
[1738176750642,3.20226,3122.8,3122.2,0.313]
[1738176750800,3.20239,3122.7,3122.3,0.55]
[1738176752133,3.20296,3122.2,3121.4,3.20366]
[1738176752332,3.20297,3122.1,3122.0,0.313]
[1738176753722,3.20297,3122.1,3122.0,0.55]
[1738176753925,3.20363,3121.5,3121.0,0.6474797]
[1738176754124,3.20363,3121.5,3121.1,0.313]
[1738176754334,0.7727,3122.0,3121.1,0.313]
[1738176754335,3.20389,3121.2,3121.1,0.313]
[1738176754639,3.20377,3121.4,3121.2,0.55]
[1738176755232,3.20377,3121.4,3121.1,0.313]
[1738176755645,7.17904,3121.9,3121.2,0.313]
[1738176755941,3.2042,3120.9,3120.8,2.536]
[1738176756113,3.2042,3120.9,3120.8,3.399]
[1738176756824,3.20394,3121.2,3120.9,0.55]
[1738176757025,3.9653,3120.9,3120.8,2.536]
[1738176757417,3.9653,3120.9,3120.8,3.086]
[1738176758145,3.20409,3121.1,3120.9,0.55]
[1738176758714,4.241543,3121.8,3120.9,0.8586]
[1738176758715,3.20376,3121.4,3120.9,0.8586]
[1738176758955,3.20372,3121.4,3121.0,0.313]
[1738176759243,3.20379,3121.3,3121.0,0.313]
[1738176760022,3.20369,3121.4,3121.0,0.313]
[1738176760803,3.20369,3121.4,3121.2,0.55]
[1738176761003,3.20379,3121.3,3121.2,0.55]
[1738176761237,3.20411,3121.0,3120.8,2.536]
[1738176761435,3.20411,3121.0,3120.9,0.863]
[1738176761708,3.20399,3121.1,3121.0,0.55]
[1738176761920,3.20391,3121.2,3120.9,0.313]
[1738176762121,3.20372,3121.4,3121.0,0.55]
[1738176762443,3.20396,3121.2,3121.0,0.55]
[1738176762641,3.20399,3121.1,3121.0,0.863]
[1738176763312,3.2041,3121.0,3120.9,0.863]
[1738176763509,3.2041,3121.0,3120.9,0.55]
[1738176763704,3.2041,3121.0,3120.9,0.863]
[1738176763929,3.2041,3121.0,3120.9,0.313]
[1738176764109,3.2041,3121.0,3120.9,0.863]
[1738176764324,3.2041,3121.0,3120.9,0.313]
[1738176764718,3.20396,3121.2,3120.9,0.313]
[1738176764926,3.2041,3121.0,3120.9,0.863]
[1738176765250,3.20396,3121.2,3121.0,0.55]
[1738176765970,3.9821,3120.9,3120.8,2.536]
[1738176766270,3.2042,3120.9,3120.8,2.536]
[1738176766408,3.2042,3120.9,3120.8,3.086]
[1738176767108,3.20369,3121.4,3119.8,3.20525]
[1738176767109,3.2046,3120.6,3119.8,3.20525]
[1738176767451,3.20468,3120.5,3119.9,4.35092]
[1738176767649,3.2046,3120.6,3120.0,3.55]
[1738176767816,3.20471,3120.4,3119.9,4.35092]
[1738176768417,3.20471,3120.4,3120.0,0.55]
[1738176769452,3.20471,3120.4,3120.2,0.55]
[1738176769947,3.20471,3120.4,3120.0,0.55]
[1738176770549,3.20436,3120.8,3120.4,0.55]
[1738176770748,3.20461,3120.5,3120.4,0.55]
[1738176771049,3.20411,3121.0,3120.6,0.55]
[1738176771368,3.20447,3120.7,3120.2,0.7888]
[1738176771527,3.20447,3120.7,3120.3,0.55]
[1738176771711,3.20447,3120.7,3119.6,3.20551]
[1738176771712,0.8078,3120.6,3119.5,0.64094552]
[1738176772053,3.20468,3120.5,3119.9,0.55]
[1738176772224,3.20482,3120.3,3119.9,0.55]
[1738176772429,3.20492,3120.2,3119.8,0.55]
[1738176773424,3.20466,3120.5,3119.9,0.0075]